lending/lending_fUSD_20260206
["ID","MTS","AMOUNT","RATE_DAILY","PERIOD"]
[404632843,1770359365776,290.39862941,0.00044106,120]
[404632844,1770359366407,290.39862941,0.00044106,120]
[404632845,1770359399681,236.04928084,0.00044106,120]
[404632846,1770359401278,385.90421562,0.00011072,2]
[404632847,1770359413161,5902.5892167,0.00011099,2]
[404632848,1770359413187,8052.75598821,0.00011099,2]
[404632849,1770359415700,151.0,0.00044106,120]
[404632850,1770359416410,156.587,0.00044106,120]
[404632851,1770359417142,162.380719,0.00044106,120]
[404632852,1770359417823,168.3888056,0.00044106,120]
[404632853,1770359417908,155.42668228,0.00011106,2]
[404632854,1770359418984,174.61919141,0.00044106,120]
[404632856,1770359419693,181.08010149,0.00044106,120]
[404632860,1770359420483,187.78006525,0.00044106,120]
[404632861,1770359421205,194.72792766,0.00044106,120]
[404632862,1770359421965,201.93286099,0.00044106,120]
[404632863,1770359422761,209.40437684,0.00044106,120]
[404632864,1770359423256,1791.82732951,0.00011072,2]
[404632865,1770359423284,4025.75207571,0.00011072,2]
[404632866,1770359423473,217.15233878,0.00044106,120]
[404632867,1770359424180,225.18697532,0.00044106,120]
[404632868,1770359425175,233.51889341,0.00044106,120]
[404632869,1770359426228,242.15909246,0.00044106,120]
[404632870,1770359426991,251.11897888,0.00044106,120]
[404632871,1770359427654,260.4103811,0.00044106,120]
[404632872,1770359428483,270.0455652,0.00044106,120]
[404632873,1770359429176,280.03725112,0.00044106,120]
[404632874,1770359429880,290.39862941,0.00044106,120]
[404632875,1770359430619,290.39862941,0.00044106,120]
[404632886,1770359431940,-509.57470144,0.00011106,2]
[404632887,1770359431950,-1200.0,0.00011115,2]
[404632888,1770359431960,-150.0,0.00011115,2]
[404632889,1770359431970,-300.0,0.00011115,2]
[404632890,1770359431979,-1932.37316671,0.00011116,2]
[404632891,1770359431995,-48794.23983806,0.00011116,2]
[404632892,1770359432006,-302.04407022,0.00011116,2]
[404632939,1770359445013,-526.71302217,0.00011116,2]
[404632940,1770359445063,-4.04445677,0.00011116,2]
[404632974,1770359446355,-69021.07074181,0.00011116,2]
[404632976,1770359446426,-1055.64450942,0.00011116,2]
[404632977,1770359446442,-330.0,0.00011116,2]
[404632981,1770359454752,200.0,0.000106,3]
[404632982,1770359456835,400.0,0.000107,3]
[404632983,1770359458930,600.0,0.000108,3]
[404632984,1770359461042,800.0,0.000109,3]
[404632985,1770359467877,4054.65072,7.945e-05,2]
[404632986,1770359469151,151.0,0.00044106,120]
[404632987,1770359469840,156.587,0.00044106,120]
[404632988,1770359470551,162.380719,0.00044106,120]
[404632989,1770359471240,168.3888056,0.00044106,120]
[404632990,1770359471974,174.61919141,0.00044106,120]
[404632991,1770359472691,181.08010149,0.00044106,120]
[404632992,1770359473378,187.78006525,0.00044106,120]
[404632993,1770359474122,194.72792766,0.00044106,120]
[404632994,1770359474866,201.93286099,0.00044106,120]
[404632995,1770359474910,2573.39663808,0.00011072,2]
[404632996,1770359475565,209.40437684,0.00044106,120]
[404632997,1770359476497,217.15233878,0.00044106,120]
[404632998,1770359477111,225.18697532,0.00044106,120]
[404632999,1770359477830,233.51889341,0.00044106,120]
[404633000,1770359478519,242.15909246,0.00044106,120]
[404633001,1770359479209,251.11897888,0.00044106,120]
[404633002,1770359479721,155.50111308,0.00011072,2]
[404633003,1770359479932,260.4103811,0.00044106,120]
[404633004,1770359481077,270.0455652,0.00044106,120]
[404633005,1770359481954,280.03725112,0.00044106,120]
[404633006,1770359482630,290.39862941,0.00044106,120]
[404633007,1770359483348,290.39862941,0.00044106,120]
[404633008,1770359484518,172.0,1.21e-06,2]
[404633009,1770359492208,3044.46152884,0.00010894,2]
[404633010,1770359492233,1619.27447116,0.00010894,2]
[404633011,1770359492327,409.326,0.00010894,2]
[404633012,1770359493858,7971.40952884,0.00011099,2]
[404633013,1770359503271,500.0,0.00044106,120]
[404633014,1770359503512,500.0,0.00044106,120]
[404633015,1770359503756,500.0,0.00044106,120]
[404633016,1770359504004,500.0,0.00044106,120]
[404633017,1770359504280,500.0,0.00044106,120]
[404633018,1770359504562,500.0,0.00044106,120]
[404633019,1770359504841,500.0,0.00044106,120]
[404633020,1770359505107,500.0,0.00044106,120]
[404633021,1770359505356,500.0,0.00044106,120]
[404633022,1770359505863,500.0,0.00044106,120]
[404633023,1770359505939,500.0,0.00044106,120]
[404633024,1770359506094,500.0,0.00044106,120]
[404633025,1770359506335,254.81124989,0.00044106,120]
[404633026,1770359524587,-162.0,0.0002142,120]
[404633027,1770359524616,-500.0,0.00022,60]
[404633028,1770359524641,-162.0,0.00022491,120]
[404633029,1770359524671,-158.10366247,0.00023,120]
[404633030,1770359524699,-200.0,0.00024,120]
[404633031,1770359524727,-279.23363006,0.00025,60]
[404633032,1770359524757,-500.0,0.00027397,120]
[404633033,1770359524792,-8989.01096956,0.000295,120]
[404633034,1770359524822,-20146.46131341,0.0003,120]
[404633035,1770359524848,-554.31403763,0.0003,120]
[404633036,1770359524875,-162.75277149,0.0003,120]
[404633037,1770359524902,-3274.68234599,0.0003,120]
[404633038,1770359524929,-160.0,0.0003,120]
[404633039,1770359524956,-2422.07667084,0.0003013,120]
[404633040,1770359524984,-500.0,0.00030137,120]
[404633041,1770359525011,-6726.82282041,0.000302,120]
[404633042,1770359525043,-151.01,0.00030411,120]
[404633043,1770359525069,-160.0,0.00031,120]
[404633044,1770359525094,-584.71652623,0.00031,120]
[404633045,1770359525124,-100718.3824244,0.000315,120]
[404633046,1770359525147,-1455.84909502,0.00032,120]
[404633047,1770359525169,-468.0,0.00032,120]
[404633048,1770359525192,-160.0,0.00032,120]
[404633049,1770359525218,-160.0,0.00032,120]
[404633050,1770359525242,-574.391012,0.0003269,120]
[404633051,1770359525265,-500.0,0.00032877,120]
[404633052,1770359525292,-160.0,0.00033,120]
[404633053,1770359525319,-160.0,0.00033,120]
[404633054,1770359525343,-1767.90480193,0.00034,120]
[404633055,1770359525368,-238.85380775,0.000345,120]
[404633056,1770359525393,-665.54540033,0.0003488,120]
[404633057,1770359525417,-175.21763024,0.00035,120]
[404633058,1770359525442,-168.0,0.00035,120]
[404633059,1770359525467,-151.01,0.00035479,120]
[404633060,1770359525491,-14533.51,0.000355,120]
[404633061,1770359525521,-1623.81880832,0.000356,120]
[404633062,1770359525550,-500.0,0.00035616,120]
[404633063,1770359525579,-400.0,0.00036,120]
[404633064,1770359525612,-2567.806,0.000363,120]
[404633065,1770359525639,-2567.806,0.000363,120]
[404633066,1770359525668,-2567.8,0.000363,120]
[404633067,1770359525695,-517.85342847,0.0003658,120]
[404633068,1770359525730,-1000.0,0.000368,60]
[404633069,1770359525755,-16095.21967493,0.00036888,60]
[404633070,1770359525787,-500.0,0.00037,120]
[404633071,1770359525814,-150.0,0.00037,120]
[404633072,1770359525843,-978.26,0.00037067,120]
[404633073,1770359525871,-195.58902899,0.000372,120]
[404633074,1770359525898,-2485.99813953,0.000376,120]
[404633075,1770359531070,-176.91186047,0.000376,120]
[404633076,1770359531110,-2662.91,0.000376,120]
[404633077,1770359531139,-2662.91,0.000376,120]
[404633078,1770359531165,-400.0,0.00038,120]
[404633079,1770359531189,-500.0,0.00038356,120]
[404633080,1770359531218,-151.0,0.00038356,120]
[404633081,1770359531250,-159.542697,0.00038356,120]
[404633082,1770359531277,-190.78349059,0.00038678,120]
[404633083,1770359531299,-450.42461993,0.00038679,120]
[404633084,1770359531322,-163.169687,0.000388,120]
[404633085,1770359531344,-163.169687,0.000388,120]
[404633086,1770359531367,-163.169687,0.000388,120]
[404633087,1770359531389,-163.169687,0.000388,120]
[404633088,1770359531411,-2567.806,0.000389,120]
[404633089,1770359531433,-2567.806,0.000389,120]
[404633090,1770359531458,-2567.8,0.000389,120]
[404633091,1770359531480,-2577.55390576,0.00039,120]
[404633092,1770359531501,-151.0,0.00039,120]
[404633093,1770359531523,-151.0,0.00039,120]
[404633094,1770359531545,-286.660068,0.00039,120]
[404633095,1770359531568,-151.0,0.00039,120]
[404633096,1770359531590,-273.687741,0.00039,120]
[404633097,1770359531611,-330.310248,0.00039041,120]
[404633098,1770359531634,-330.310248,0.00039041,120]
[404633099,1770359531656,-330.310248,0.00039041,120]
[404633100,1770359531679,-330.310248,0.00039041,120]
[404633101,1770359531700,-330.310248,0.00039041,120]
[404633102,1770359531722,-330.310248,0.00039041,120]
[404633103,1770359531744,-330.310248,0.00039041,120]
[404633104,1770359531767,-330.310248,0.00039041,120]
[404633105,1770359531792,-330.310248,0.00039041,120]
[404633106,1770359531815,-330.310248,0.00039041,120]
[404633107,1770359531839,-330.310248,0.00039041,120]
[404633108,1770359531865,-330.310248,0.00039041,120]
[404633109,1770359531888,-151.0,0.00039726,120]
[404633110,1770359531910,-151.0,0.00039726,120]
[404633111,1770359531931,-151.0,0.00039726,120]
[404633112,1770359531952,-151.0,0.00039726,120]
[404633113,1770359531973,-232.213445,0.00039726,120]
[404633114,1770359531993,-151.0,0.00039726,120]
[404633115,1770359532017,-151.0,0.00039726,120]
[404633116,1770359532047,-151.0,0.00039726,120]
[404633117,1770359532068,-249.896138,0.00039726,120]
[404633118,1770359532091,-151.0,0.00039726,120]
[404633119,1770359532113,-151.0,0.00039726,120]
[404633120,1770359532134,-218.109049,0.00039726,120]
[404633121,1770359532156,-274.24725,0.00039726,120]
[404633122,1770359532177,-153.540093,0.00039726,120]
[404633123,1770359532198,-151.0,0.00039726,120]
[404633124,1770359532218,-151.0,0.00039726,120]
[404633125,1770359532239,-472.18557,0.00039726,120]
[404633126,1770359532260,-472.18557,0.00039726,120]
[404633127,1770359532285,-151.0,0.00039726,120]
[404633128,1770359532306,-472.18557,0.00039726,120]
[404633129,1770359532328,-472.18557,0.00039726,120]
[404633130,1770359532350,-472.18557,0.00039726,120]
[404633131,1770359532371,-472.18557,0.00039726,120]
[404633132,1770359532393,-472.18557,0.00039726,120]
[404633133,1770359532414,-472.18557,0.00039726,120]
[404633134,1770359532435,-151.0,0.00039726,120]
[404633135,1770359532456,-218.244773,0.00039726,120]
[404633136,1770359532477,-151.0,0.00039726,120]
[404633137,1770359532497,-160.375568,0.00039726,120]
[404633138,1770359532518,-151.0,0.00039726,120]
[404633139,1770359532542,-151.0,0.00039726,120]
[404633140,1770359532562,-151.0,0.00039726,120]
[404633141,1770359532583,-195.48487,0.00039726,120]
[404633142,1770359532604,-153.604192,0.00039726,120]
[404633143,1770359532624,-151.0,0.00039726,120]
[404633144,1770359532646,-163.984711,0.00039726,120]
[404633145,1770359532667,-163.313095,0.00039726,120]
[404633146,1770359532687,-151.0,0.00039726,120]
[404633147,1770359532708,-151.0,0.00039726,120]
[404633148,1770359532729,-165.833395,0.00039726,120]
[404633149,1770359532749,-246.70561,0.00039726,120]
[404633150,1770359532774,-151.0,0.00039726,120]
[404633151,1770359532795,-151.0,0.00039726,120]
[404633152,1770359532816,-151.0,0.00039726,120]
[404633153,1770359532838,-151.0,0.00039726,120]
[404633154,1770359532862,-151.0,0.00039726,120]
[404633155,1770359532884,-153.545587,0.00039726,120]
[404633156,1770359532905,-153.951957,0.00039726,120]
[404633157,1770359532926,-292.470497,0.00039726,120]
[404633158,1770359532949,-222.498882,0.00039726,120]
[404633159,1770359532974,-175.886941,0.00039726,120]
[404633160,1770359532999,-151.0,0.00039726,120]
[404633161,1770359533026,-151.0,0.00039726,120]
[404633162,1770359533047,-151.0,0.00039726,120]
[404633163,1770359533070,-151.0,0.00039726,120]
[404633164,1770359533093,-161.682161,0.00039726,120]
[404633165,1770359533115,-151.0,0.00039726,120]
[404633166,1770359533135,-164.344145,0.00039726,120]
[404633167,1770359533156,-151.0,0.00039726,120]
[404633168,1770359533178,-151.0,0.00039726,120]
[404633169,1770359533199,-160.727047,0.00039726,120]
[404633170,1770359533219,-153.402556,0.00039726,120]
[404633171,1770359533241,-151.0,0.00039726,120]
[404633172,1770359533263,-151.0,0.00039726,120]
[404633173,1770359533286,-151.0,0.00039726,120]
[404633174,1770359533307,-166.571788,0.00039726,120]
[404633175,1770359533329,-153.574484,0.00039726,120]
[404633176,1770359533352,-282.243664,0.00039726,120]
[404633177,1770359533374,-151.0,0.00039726,120]
[404633178,1770359533396,-198.942517,0.00039726,120]
[404633179,1770359533416,-167.629116,0.00039726,120]
[404633180,1770359533636,-1774.251222,0.00039726,120]
[404633181,1770359533659,-1774.251222,0.00039726,120]
[404633182,1770359533682,-1774.251222,0.00039726,120]
[404633183,1770359533704,-1774.251222,0.00039726,120]
[404633184,1770359533725,-163.599279,0.00039726,120]
[404633185,1770359533746,-1774.251222,0.00039726,120]
[404633186,1770359533767,-1774.251222,0.00039726,120]
[404633187,1770359533791,-1774.251222,0.00039726,120]
[404633188,1770359533812,-1774.251222,0.00039726,120]
[404633189,1770359533833,-1774.251222,0.00039726,120]
[404633190,1770359533854,-1774.251222,0.00039726,120]
[404633191,1770359533875,-1774.251222,0.00039726,120]
[404633192,1770359533895,-1774.251222,0.00039726,120]
[404633193,1770359533917,-151.0,0.00039726,120]
[404633194,1770359533939,-233.639387,0.00039726,120]
[404633195,1770359533961,-151.0,0.00039726,120]
[404633196,1770359533984,-205.554364,0.00039726,120]
[404633197,1770359534007,-151.0,0.00039726,120]
[404633198,1770359534036,-265.368952,0.00039726,120]
[404633199,1770359534057,-155.144266,0.00039726,120]
[404633200,1770359534078,-151.0,0.00039726,120]
[404633201,1770359534102,-155.144266,0.00039726,120]
[404633202,1770359534125,-157.682789,0.00039726,120]
[404633203,1770359534147,-155.144266,0.00039726,120]
[404633204,1770359534169,-155.144266,0.00039726,120]
[404633205,1770359534191,-159.854084,0.00039726,120]
[404633206,1770359534212,-155.144266,0.00039726,120]
[404633207,1770359534234,-155.144266,0.00039726,120]
[404633208,1770359534255,-151.0,0.00039726,120]
[404633209,1770359534280,-151.0,0.00039726,120]
[404633210,1770359534303,-155.144266,0.00039726,120]
[404633211,1770359534326,-155.144266,0.00039726,120]
[404633212,1770359534348,-151.0,0.00039726,120]
[404633213,1770359534368,-155.144266,0.00039726,120]
[404633214,1770359534389,-180.494328,0.00039726,120]
[404633215,1770359534410,-155.144266,0.00039726,120]
[404633216,1770359534430,-155.144266,0.00039726,120]
[404633217,1770359534451,-155.144266,0.00039726,120]
[404633218,1770359534471,-156.204022,0.00039726,120]
[404633219,1770359534493,-185.181036,0.00039726,120]
[404633220,1770359534515,-151.0,0.00039726,120]
[404633221,1770359534537,-151.0,0.00039726,120]
[404633222,1770359534559,-151.0,0.00039726,120]
[404633223,1770359534582,-151.0,0.00039726,120]
[404633224,1770359534605,-151.0,0.00039726,120]
[404633225,1770359534626,-289.155282,0.00039726,120]
[404633226,1770359534646,-267.071428,0.00039726,120]
[404633227,1770359534666,-267.071428,0.00039726,120]
[404633228,1770359534686,-267.071428,0.00039726,120]
[404633229,1770359534705,-267.071428,0.00039726,120]
[404633230,1770359534726,-267.071428,0.00039726,120]
[404633231,1770359534746,-267.071428,0.00039726,120]
[404633232,1770359534766,-267.071428,0.00039726,120]
[404633233,1770359534790,-267.071428,0.00039726,120]
[404633234,1770359534810,-267.071428,0.00039726,120]
[404633235,1770359534831,-1189.206863,0.00039726,120]
[404633236,1770359534851,-1189.206863,0.00039726,120]
[404633237,1770359534871,-1189.206863,0.00039726,120]
[404633238,1770359534892,-267.071428,0.00039726,120]
[404633239,1770359534915,-267.071428,0.00039726,120]
[404633240,1770359534936,-1189.206863,0.00039726,120]
[404633241,1770359534957,-267.071428,0.00039726,120]
[404633242,1770359534977,-1189.206863,0.00039726,120]
[404633243,1770359534997,-1189.206863,0.00039726,120]
[404633244,1770359535020,-151.0,0.00039726,120]
[404633245,1770359535041,-151.0,0.00039726,120]
[404633246,1770359535064,-2539.858744,0.00039726,120]
[404633247,1770359535086,-151.0,0.00039726,120]
[404633248,1770359535108,-2539.858744,0.00039726,120]
[404633249,1770359535129,-1189.206863,0.00039726,120]
[404633250,1770359535152,-226.56591,0.00039726,120]
[404633251,1770359535174,-2539.858744,0.00039726,120]
[404633252,1770359535195,-1189.206863,0.00039726,120]
[404633253,1770359535217,-1189.206863,0.00039726,120]
[404633254,1770359535239,-2539.858744,0.00039726,120]
[404633255,1770359535260,-2539.858744,0.00039726,120]
[404633256,1770359535283,-1189.206863,0.00039726,120]
[404633257,1770359535304,-1189.206863,0.00039726,120]
[404633258,1770359535327,-2539.858744,0.00039726,120]
[404633259,1770359535348,-1189.206863,0.00039726,120]
[404633260,1770359535370,-2539.858744,0.00039726,120]
[404633261,1770359535392,-2539.858744,0.00039726,120]
[404633262,1770359535416,-2539.858744,0.00039726,120]
[404633263,1770359535446,-151.0,0.00039726,120]
[404633264,1770359535469,-151.0,0.00039726,120]
[404633265,1770359535490,-2539.858744,0.00039726,120]
[404633266,1770359535512,-151.0,0.00039726,120]
[404633267,1770359535537,-2539.858744,0.00039726,120]
[404633268,1770359535559,-2539.858744,0.00039726,120]
[404633269,1770359535582,-151.0,0.00039726,120]
[404633270,1770359535605,-151.0,0.00039726,120]
[404633271,1770359535628,-202.531234,0.00039726,120]
[404633272,1770359535651,-151.0,0.00039726,120]
[404633273,1770359535674,-151.0,0.00039726,120]
[404633274,1770359535695,-151.0,0.00039726,120]
[404633275,1770359535716,-171.14953,0.00039726,120]
[404633276,1770359535738,-151.0,0.00039726,120]
[404633277,1770359535801,-158.221253,0.00039726,120]
[404633278,1770359535823,-151.0,0.00039726,120]
[404633279,1770359535844,-151.0,0.00039726,120]
[404633280,1770359535864,-151.0,0.00039726,120]
[404633281,1770359535885,-151.0,0.00039726,120]
[404633282,1770359535906,-151.0,0.00039726,120]
[404633283,1770359535926,-151.0,0.00039726,120]
[404633284,1770359535946,-270.148361,0.00039726,120]
[404633285,1770359535967,-166.004905,0.00039726,120]
[404633286,1770359535988,-1714.437687,0.00039726,120]
[404633287,1770359536010,-1714.437687,0.00039726,120]
[404633288,1770359536034,-1714.437687,0.00039726,120]
[404633289,1770359536056,-1714.437687,0.00039726,120]
[404633290,1770359536076,-1714.437687,0.00039726,120]
[404633291,1770359536099,-1714.437687,0.00039726,120]
[404633292,1770359536121,-1714.437687,0.00039726,120]
[404633293,1770359536143,-1714.437687,0.00039726,120]
[404633294,1770359536164,-1714.437687,0.00039726,120]
[404633295,1770359536184,-1714.437687,0.00039726,120]
[404633296,1770359536204,-1714.437687,0.00039726,120]
[404633297,1770359536225,-1714.437687,0.00039726,120]
[404633298,1770359536246,-151.0,0.00039726,120]
[404633299,1770359536266,-151.0,0.00039726,120]
[404633300,1770359536288,-151.0,0.00039726,120]
[404633301,1770359536308,-151.0,0.00039726,120]
[404633302,1770359536329,-151.0,0.00039726,120]
[404633303,1770359536352,-151.0,0.00039726,120]
[404633304,1770359536373,-151.0,0.00039726,120]
[404633305,1770359536394,-151.0,0.00039726,120]
[404633306,1770359536415,-151.0,0.00039726,120]
[404633307,1770359536436,-151.0,0.00039726,120]
[404633308,1770359536457,-151.0,0.00039726,120]
[404633309,1770359536477,-210.466901,0.00039726,120]
[404633310,1770359536499,-151.0,0.00039726,120]
[404633311,1770359536525,-201.089528,0.00039726,120]
[404633312,1770359536547,-161.274964,0.00039726,120]
[404633313,1770359536569,-155.837974,0.00039726,120]
[404633314,1770359536591,-151.0,0.00039726,120]
[404633315,1770359536612,-151.0,0.00039726,120]
[404633316,1770359536633,-151.0,0.00039726,120]
[404633317,1770359536653,-151.0,0.00039726,120]
[404633318,1770359536674,-239.433232,0.00039726,120]
[404633319,1770359536694,-157.261336,0.00039726,120]
[404633320,1770359536714,-156.886044,0.00039726,120]
[404633321,1770359536734,-151.0,0.00039726,120]
[404633322,1770359536755,-151.0,0.00039726,120]
[404633323,1770359536778,-156.59779,0.00039726,120]
[404633324,1770359536802,-151.0,0.00039726,120]
[404633325,1770359536822,-227.840453,0.00039726,120]
[404633326,1770359536844,-393.117175,0.00039726,120]
[404633327,1770359536866,-393.117175,0.00039726,120]
[404633328,1770359536887,-393.117175,0.00039726,120]
[404633329,1770359536908,-393.117175,0.00039726,120]
[404633330,1770359536928,-393.117175,0.00039726,120]
[404633331,1770359536952,-393.117175,0.00039726,120]
[404633332,1770359536974,-393.117175,0.00039726,120]
[404633333,1770359536994,-393.117175,0.00039726,120]
[404633334,1770359537017,-393.117175,0.00039726,120]
[404633335,1770359537040,-393.117175,0.00039726,120]
[404633336,1770359537063,-393.117175,0.00039726,120]
[404633337,1770359537086,-393.117175,0.00039726,120]
[404633338,1770359537111,-393.117175,0.00039726,120]
[404633339,1770359537133,-393.117175,0.00039726,120]
[404633340,1770359537154,-393.117175,0.00039726,120]
[404633341,1770359537175,-393.117175,0.00039726,120]
[404633342,1770359537197,-151.0,0.00039726,120]
[404633343,1770359537219,-151.0,0.00039726,120]
[404633344,1770359537242,-151.0,0.00039726,120]
[404633345,1770359537264,-290.630391,0.00039726,120]
[404633346,1770359537290,-151.0,0.00039726,120]
[404633347,1770359537310,-151.0,0.00039726,120]
[404633348,1770359537330,-235.182915,0.00039726,120]
[404633349,1770359537351,-151.0,0.0003989,120]
[404633350,1770359537371,-151.0,0.0003989,120]
[404633351,1770359537392,-151.0,0.0003989,120]
[404633352,1770359537413,-151.0,0.0003989,120]
[404633353,1770359537433,-151.0,0.0003989,120]
[404633354,1770359537454,-10000.0,0.000399,120]
[404633355,1770359537477,-5028.86134233,0.0004,120]
[404633356,1770359537497,-3084.68003563,0.0004,120]
[404633357,1770359537518,-163.52547963,0.0004,120]
[404633358,1770359537541,-355.22292421,0.0004,120]
[404633359,1770359537562,-557.0,0.0004,120]
[404633360,1770359537585,-453.43324718,0.0004,120]
[404633361,1770359537607,-759.79086308,0.0004,120]
[404633362,1770359537629,-400.0,0.0004,120]
[404633363,1770359537650,-154.0,0.0004,120]
[404633364,1770359537671,-153.0,0.0004,120]
[404633365,1770359537692,-505.47581007,0.0004,120]
[404633366,1770359537714,-28440.93053612,0.0004,120]
[404633367,1770359537926,151.0,0.00044106,120]
[404633368,1770359537984,156.587,0.00044106,120]
[404633369,1770359538175,162.380719,0.00044106,120]
[404633370,1770359538219,168.3888056,0.00044106,120]
[404633371,1770359538298,174.61919141,0.00044106,120]
[404633372,1770359538352,181.08010149,0.00044106,120]
[404633373,1770359538457,187.78006525,0.00044106,120]
[404633374,1770359539100,194.72792766,0.00044106,120]
[404633375,1770359539851,201.93286099,0.00044106,120]
[404633376,1770359540550,209.40437684,0.00044106,120]
[404633377,1770359541291,217.15233878,0.00044106,120]
[404633378,1770359542021,225.18697532,0.00044106,120]
[404633379,1770359542838,233.51889341,0.00044106,120]
[404633380,1770359543533,242.15909246,0.00044106,120]
[404633381,1770359544224,251.11897888,0.00044106,120]
[404633382,1770359544920,260.4103811,0.00044106,120]
[404633383,1770359545622,270.0455652,0.00044106,120]
[404633384,1770359546350,280.03725112,0.00044106,120]
[404633385,1770359546980,290.39862941,0.00044106,120]
[404633386,1770359547634,290.39862941,0.00044106,120]
[404633388,1770359592573,151.0,0.00044106,120]
[404633389,1770359593256,156.587,0.00044106,120]
[404633390,1770359593877,162.380719,0.00044106,120]
[404633391,1770359594637,168.3888056,0.00044106,120]
[404633392,1770359595324,174.61919141,0.00044106,120]
[404633393,1770359596006,181.08010149,0.00044106,120]
[404633394,1770359596704,187.78006525,0.00044106,120]
[404633395,1770359597409,194.72792766,0.00044106,120]
[404633396,1770359598125,201.93286099,0.00044106,120]
[404633397,1770359598814,209.40437684,0.00044106,120]
[404633398,1770359599691,217.15233878,0.00044106,120]
[404633399,1770359600229,225.18697532,0.00044106,120]
[404633400,1770359600935,233.51889341,0.00044106,120]
[404633401,1770359601633,242.15909246,0.00044106,120]
[404633402,1770359602367,251.11897888,0.00044106,120]
[404633403,1770359603060,260.4103811,0.00044106,120]
[404633404,1770359603761,270.0455652,0.00044106,120]
[404633405,1770359604465,280.03725112,0.00044106,120]
[404633406,1770359605161,290.39862941,0.00044106,120]
[404633407,1770359605835,290.39862941,0.00044106,120]
[404633408,1770359652313,151.0,0.00044106,120]
[404633409,1770359653005,156.587,0.00044106,120]
[404633410,1770359653891,162.380719,0.00044106,120]
[404633411,1770359654584,168.3888056,0.00044106,120]
[404633412,1770359655345,174.61919141,0.00044106,120]
[404633413,1770359656055,181.08010149,0.00044106,120]
[404633414,1770359656751,187.78006525,0.00044106,120]
[404633415,1770359657392,194.72792766,0.00044106,120]
[404633416,1770359658115,201.93286099,0.00044106,120]
[404633417,1770359658838,209.40437684,0.00044106,120]
[404633418,1770359659536,217.15233878,0.00044106,120]
[404633419,1770359660242,225.18697532,0.00044106,120]
[404633420,1770359661131,233.51889341,0.00044106,120]
[404633421,1770359661650,242.15909246,0.00044106,120]
[404633422,1770359662347,251.11897888,0.00044106,120]
[404633423,1770359663053,260.4103811,0.00044106,120]
[404633424,1770359663761,270.0455652,0.00044106,120]
[404633425,1770359664248,-500.0,0.00023,45]
[404633426,1770359664271,-167.786182,0.00023062,30]
[404633427,1770359664293,-500.0,0.00024,45]
[404633428,1770359664517,-978.26,0.00027397,30]
[404633429,1770359664539,-240.31752293,0.00027397,30]
[404633430,1770359664561,-2000.0,0.000275,30]
[404633431,1770359664584,-4606.91212249,0.0003,30]
[404633432,1770359664606,-241.22848147,0.0003,30]
[404633433,1770359664680,280.03725112,0.00044106,120]
[404633434,1770359665147,290.39862941,0.00044106,120]
[404633435,1770359665765,290.39862941,0.00044106,120]
[404633436,1770359672905,-500.0,0.00022,20]
[404633437,1770359672927,-503.06,0.00022,15]
[404633438,1770359672949,-500.0,0.00023,25]
[404633439,1770359672970,-500.0,0.00024,15]
[404633440,1770359672990,-150.0,0.00025,17]